Workbook

Sheet Chart
A1: Lunar Cycle Jitter: Seventeen-Month Lunar Calendar
A2: http://www.hermetic.ch/cal_stud/palmen/lun17m.htm
A3: ="Cycle contains "&MPC&" months ("&FMPC&" full, "&DMPC&" deficient) = "&DPC&" days = "&reducefraction(DPC,7,FALSE,FALSE,TRUE)&" weeks." -> Cycle contains 850 months (451 full, 399 deficient) = 25101 days = 3585+6/7 weeks.
A4: Lunar years have 17 lunar months, odd-numbered months have 30 days,
A5: even-numbered months have 29 days, except 8th month of the 50th year, which has 30 days.
A6: ="Mean month = "&"29+"&reducefraction(FMPC,MPC,FALSE,FALSE,TRUE)&" days = 29d 12h 44m and "&reducefraction(240*(360*FMPC-191*MPC),MPC,FALSE,FALSE,TRUE)&" seconds" -> Mean month = 29+451/850 days = 29d 12h 44m and 2+14/17 seconds
A7: ="or approximately 29"&MID(FMPC/MPC,2,20)&" days = 29d 12h 44m and "&ROUND(240*(360*FMPC-191*MPC)/MPC,6)&" seconds." -> or approximately 29.530588235294118 days = 29d 12h 44m and 2.823529 seconds.
A8: ="Duration per ''Part'' = 1/"&MPC&" day = "&reducefraction(24,MPC,FALSE,FALSE,TRUE)&" hour = "&reducefraction(1440,MPC,FALSE,FALSE,TRUE)&" minutes = "&reducefraction(86400,MPC,FALSE,FALSE,TRUE)&" seconds; one hour = "&reducefraction(MPC,24,FALSE,FALSE,TRUE)&" parts." -> Duration per ''Part'' = 1/850 day = 12/425 hour = 1+59/85 minutes = 101+11/17 seconds; one hour = 35+5/12 parts.
Q12: FALSE
Q19: 1
Q20: Selected
Q21: Month
Q22: in Year
Q23: (1 to 17)

Sheet Data
A1: Lunar Cycle Jitter Evaluator
A2: by Dr. Irv Bromberg, University of Toronto, Canada
A3: http://individual.utoronto.ca/intervalmath/jitter/index.html | D3: Jitter | E3: (parts)
D4: =MAX(H:H) -> 1232 | E4: maximum | F4: =reducefraction(JitterMax*MPC,MPC,FALSE,FALSE,FALSE) -> 1232
A5: Months per Cycle (Parts per Day): | B5: 850 | C5: months (parts) | D5: =MIN(H:H) -> -399 | E5: minimum | F5: =reducefraction(JitterMin*MPC,MPC,FALSE,FALSE,FALSE) -> –(399)
A6: 30-day Months per Cycle: | B6: 451 | C6: months | D6: =D4-D5 -> 1631 | E6: range | F6: =reducefraction(JitterRange*MPC,MPC,FALSE,FALSE,FALSE) -> 1631
A7: 29-day Months per Cycle: | B7: =MPC-FMPC -> 399 | C7: months | D7: ="Jitter range = "&F6&" parts = "&reducefraction(F6*24,MPC,FALSE,FALSE,FALSE)&" hours" -> Jitter range = 1631 parts = 46 + 22 / 425 hours
A8: Days per Cycle (Parts per Month): | B8: =29*MPC+FMPC -> 25101 | C8: days (parts)
D9: Limits for Chart:
A10: Mean Month: | B10: ="29 + "&reducefraction(FMPC,MPC,FALSE,FALSE,FALSE) -> 29 + 451 / 850 | C10: days | D10: x | E10: y | F10: Hours
A11: Mean Month >29d: | B11: =FMPC/MPC -> 0.530588235294118 | C11: days | D11: =A21 -> 1 | E11: =JitterMax -> 1232 | F11: =E11*24/MPC -> 34.78588235
A12: Mean Month >29d 12h 44m: | B12: =reducefraction(240*(360*FMPC-191*MPC),MPC,FALSE,FALSE,TRUE) -> 2+14/17 | C12: seconds | D12: =D11+MPC*2 -> 1701 | E12: =E11 -> 1232 | F12: =E12*24/MPC -> 34.78588235
A13: … or approximately: | B13: =240*(360*FMPC-191*MPC)/MPC -> 2.823529412 | C13: seconds
D14: =D11 -> 1 | E14: 0
D15: =D12 -> 1701 | E15: 0
D17: =A21 -> 1 | E17: =JitterMin -> -399 | F17: =E17*24/MPC -> -11.26588235
A18: Duration per Part: | B18: =reducefraction(1440,MPC,FALSE,FALSE,FALSE) -> 1 + 59 / 85 | C18: minutes | D18: =D12 -> 1701 | E18: =E17 -> -399 | F18: =E18*24/MPC -> -11.26588235
A20: Month in Cycle | B20: Lunar Year | C20: Month in Year | D20: Leap Month? | E20: Month Length | F20: New Month Moment | G20: Elapsed | H20: Difference
A21: 1 | B21: 1 | C21: 1 | D21: =AND(MOD(B21,50)=0,C21=8) -> FALSE | E21: =IF(MOD(C21,2)=1,30,29)+IF(D21,1,0) -> 30 | F21: 0 | G21: 0 | H21: =F21-G21 -> 0
A22: =A21+1 -> 2 | B22: =IF(C22=1,B21+1,B21) -> 1 | C22: =IF(C21=17,1,C21+1) -> 2 | D22: =AND(MOD(B22,50)=0,C22=8) -> FALSE | E22: =IF(MOD(C22,2)=1,30,29)+IF(D22,1,0) -> 29 | F22: =F21+PPM -> 25101 | G22: =G21+E21*PPD -> 25500 | H22: -399
A23: =A22+1 -> 3 | B23: 1 | C23: =IF(C22=17,1,C22+1) -> 3 | D23: FALSE | E23: 30 | F23: =F22+PPM -> 50202 | G23: 50150 | H23: 52
A24: 4 | B24: 1 | C24: 4 | D24: FALSE | E24: 29 | F24: 75303 | G24: 75650 | H24: -347
A25: 5 | B25: 1 | C25: 5 | D25: FALSE | E25: 30 | F25: 100404 | G25: 100300 | H25: 104
A26: 6 | B26: 1 | C26: 6 | D26: FALSE | E26: 29 | F26: 125505 | G26: 125800 | H26: -295
A27: 7 | B27: 1 | C27: 7 | D27: FALSE | E27: 30 | F27: 150606 | G27: 150450 | H27: 156
A28: 8 | B28: 1 | C28: 8 | D28: FALSE | E28: 29 | F28: 175707 | G28: 175950 | H28: -243
A29: 9 | B29: 1 | C29: 9 | D29: FALSE | E29: 30 | F29: 200808 | G29: 200600 | H29: 208
A30: 10 | B30: 1 | C30: 10 | D30: FALSE | E30: 29 | F30: 225909 | G30: 226100 | H30: -191
A31: 11 | B31: 1 | C31: 11 | D31: FALSE | E31: 30 | F31: 251010 | G31: 250750 | H31: 260
A32: 12 | B32: 1 | C32: 12 | D32: FALSE | E32: 29 | F32: 276111 | G32: 276250 | H32: -139
A33: 13 | B33: 1 | C33: 13 | D33: FALSE | E33: 30 | F33: 301212 | G33: 300900 | H33: 312
A34: 14 | B34: 1 | C34: 14 | D34: FALSE | E34: 29 | F34: 326313 | G34: 326400 | H34: -87
A35: 15 | B35: 1 | C35: 15 | D35: FALSE | E35: 30 | F35: 351414 | G35: 351050 | H35: 364
A36: 16 | B36: 1 | C36: 16 | D36: FALSE | E36: 29 | F36: 376515 | G36: 376550 | H36: -35
A37: 17 | B37: 1 | C37: 17 | D37: FALSE | E37: 30 | F37: 401616 | G37: 401200 | H37: 416
A38: 18 | B38: 2 | C38: 1 | D38: FALSE | E38: 30 | F38: 426717 | G38: 426700 | H38: 17
A39: 19 | B39: 2 | C39: 2 | D39: FALSE | E39: 29 | F39: 451818 | G39: 452200 | H39: -382
A40: 20 | B40: 2 | C40: 3 | D40: FALSE | E40: 30 | F40: 476919 | G40: 476850 | H40: 69
A41: 21 | B41: 2 | C41: 4 | D41: FALSE | E41: 29 | F41: 502020 | G41: 502350 | H41: -330
A42: 22 | B42: 2 | C42: 5 | D42: FALSE | E42: 30 | F42: 527121 | G42: 527000 | H42: 121
A43: 23 | B43: 2 | C43: 6 | D43: FALSE | E43: 29 | F43: 552222 | G43: 552500 | H43: -278
A44: 24 | B44: 2 | C44: 7 | D44: FALSE | E44: 30 | F44: 577323 | G44: 577150 | H44: 173
A45: 25 | B45: 2 | C45: 8 | D45: FALSE | E45: 29 | F45: 602424 | G45: 602650 | H45: -226
A46: 26 | B46: 2 | C46: 9 | D46: FALSE | E46: 30 | F46: 627525 | G46: 627300 | H46: 225
A47: 27 | B47: 2 | C47: 10 | D47: FALSE | E47: 29 | F47: 652626 | G47: 652800 | H47: -174
A48: 28 | B48: 2 | C48: 11 | D48: FALSE | E48: 30 | F48: 677727 | G48: 677450 | H48: 277
A49: 29 | B49: 2 | C49: 12 | D49: FALSE | E49: 29 | F49: 702828 | G49: 702950 | H49: -122
A50: 30 | B50: 2 | C50: 13 | D50: FALSE | E50: 30 | F50: 727929 | G50: 727600 | H50: 329
A51: 31 | B51: 2 | C51: 14 | D51: FALSE | E51: 29 | F51: 753030 | G51: 753100 | H51: -70
A52: 32 | B52: 2 | C52: 15 | D52: FALSE | E52: 30 | F52: 778131 | G52: 777750 | H52: 381
A53: 33 | B53: 2 | C53: 16 | D53: FALSE | E53: 29 | F53: 803232 | G53: 803250 | H53: -18
A54: 34 | B54: 2 | C54: 17 | D54: FALSE | E54: 30 | F54: 828333 | G54: 827900 | H54: 433
A55: 35 | B55: 3 | C55: 1 | D55: FALSE | E55: 30 | F55: 853434 | G55: 853400 | H55: 34
A56: =A55+1 -> 36 | B56: 3 | C56: 2 | D56: FALSE | E56: 29 | F56: 878535 | G56: 878900 | H56: -365
A57: 37 | B57: 3 | C57: 3 | D57: FALSE | E57: 30 | F57: 903636 | G57: 903550 | H57: 86
A58: 38 | B58: 3 | C58: 4 | D58: FALSE | E58: 29 | F58: 928737 | G58: 929050 | H58: -313
A59: 39 | B59: 3 | C59: 5 | D59: FALSE | E59: 30 | F59: 953838 | G59: 953700 | H59: 138
A60: 40 | B60: 3 | C60: 6 | D60: FALSE | E60: 29 | F60: 978939 | G60: 979200 | H60: -261
A61: 41 | B61: 3 | C61: 7 | D61: FALSE | E61: 30 | F61: 1004040 | G61: 1003850 | H61: 190
A62: 42 | B62: 3 | C62: 8 | D62: FALSE | E62: 29 | F62: 1029141 | G62: 1029350 | H62: -209
A63: 43 | B63: 3 | C63: 9 | D63: FALSE | E63: 30 | F63: 1054242 | G63: 1054000 | H63: 242
A64: 44 | B64: 3 | C64: 10 | D64: FALSE | E64: 29 | F64: 1079343 | G64: 1079500 | H64: -157
A65: 45 | B65: 3 | C65: 11 | D65: FALSE | E65: 30 | F65: 1104444 | G65: 1104150 | H65: 294
A66: 46 | B66: 3 | C66: 12 | D66: FALSE | E66: 29 | F66: 1129545 | G66: 1129650 | H66: -105
A67: 47 | B67: 3 | C67: 13 | D67: FALSE | E67: 30 | F67: 1154646 | G67: 1154300 | H67: 346
A68: 48 | B68: 3 | C68: 14 | D68: FALSE | E68: 29 | F68: 1179747 | G68: 1179800 | H68: -53
A69: 49 | B69: 3 | C69: 15 | D69: FALSE | E69: 30 | F69: 1204848 | G69: 1204450 | H69: 398
A70: 50 | B70: 3 | C70: 16 | D70: FALSE | E70: 29 | F70: 1229949 | G70: 1229950 | H70: -1
A71: 51 | B71: 3 | C71: 17 | D71: FALSE | E71: 30 | F71: 1255050 | G71: 1254600 | H71: 450
A72: 52 | B72: 4 | C72: 1 | D72: FALSE | E72: 30 | F72: 1280151 | G72: 1280100 | H72: 51
A73: 53 | B73: 4 | C73: 2 | D73: FALSE | E73: 29 | F73: 1305252 | G73: 1305600 | H73: -348
A74: 54 | B74: 4 | C74: 3 | D74: FALSE | E74: 30 | F74: 1330353 | G74: 1330250 | H74: 103
A75: 55 | B75: 4 | C75: 4 | D75: FALSE | E75: 29 | F75: 1355454 | G75: 1355750 | H75: -296
A76: 56 | B76: 4 | C76: 5 | D76: FALSE | E76: 30 | F76: 1380555 | G76: 1380400 | H76: 155
A77: 57 | B77: 4 | C77: 6 | D77: FALSE | E77: 29 | F77: 1405656 | G77: 1405900 | H77: -244
A78: 58 | B78: 4 | C78: 7 | D78: FALSE | E78: 30 | F78: 1430757 | G78: 1430550 | H78: 207
A79: 59 | B79: 4 | C79: 8 | D79: FALSE | E79: 29 | F79: 1455858 | G79: 1456050 | H79: -192
A80: 60 | B80: 4 | C80: 9 | D80: FALSE | E80: 30 | F80: 1480959 | G80: 1480700 | H80: 259
A81: 61 | B81: 4 | C81: 10 | D81: FALSE | E81: 29 | F81: 1506060 | G81: 1506200 | H81: -140
A82: 62 | B82: 4 | C82: 11 | D82: FALSE | E82: 30 | F82: 1531161 | G82: 1530850 | H82: 311
A83: 63 | B83: 4 | C83: 12 | D83: FALSE | E83: 29 | F83: 1556262 | G83: 1556350 | H83: -88
A84: 64 | B84: 4 | C84: 13 | D84: FALSE | E84: 30 | F84: 1581363 | G84: 1581000 | H84: 363
A85: 65 | B85: 4 | C85: 14 | D85: FALSE | E85: 29 | F85: 1606464 | G85: 1606500 | H85: =F85-G85 -> -36
A86: 66 | B86: =IF(C86=1,B85+1,B85) -> 4 | C86: 15 | D86: =AND(MOD(B86,50)=0,C86=8) -> FALSE | E86: =IF(MOD(C86,2)=1,30,29)+IF(D86,1,0) -> 30 | F86: 1631565 | G86: =G85+E85*PPD -> 1631150 | H86: 415
A87: 67 | B87: 4 | C87: =IF(C86=17,1,C86+1) -> 16 | D87: FALSE | E87: 29 | F87: =F86+PPM -> 1656666 | G87: 1656650 | H87: 16
A88: 68 | B88: 4 | C88: 17 | D88: FALSE | E88: 30 | F88: 1681767 | G88: 1681300 | H88: 467
A89: 69 | B89: 5 | C89: 1 | D89: FALSE | E89: 30 | F89: 1706868 | G89: 1706800 | H89: 68
A90: 70 | B90: 5 | C90: 2 | D90: FALSE | E90: 29 | F90: 1731969 | G90: 1732300 | H90: -331
A91: 71 | B91: 5 | C91: 3 | D91: FALSE | E91: 30 | F91: 1757070 | G91: 1756950 | H91: 120
A92: 72 | B92: 5 | C92: 4 | D92: FALSE | E92: 29 | F92: 1782171 | G92: 1782450 | H92: -279
A93: 73 | B93: 5 | C93: 5 | D93: FALSE | E93: 30 | F93: 1807272 | G93: 1807100 | H93: 172
A94: 74 | B94: 5 | C94: 6 | D94: FALSE | E94: 29 | F94: 1832373 | G94: 1832600 | H94: -227
A95: 75 | B95: 5 | C95: 7 | D95: FALSE | E95: 30 | F95: 1857474 | G95: 1857250 | H95: 224
A96: 76 | B96: 5 | C96: 8 | D96: FALSE | E96: 29 | F96: 1882575 | G96: 1882750 | H96: -175
A97: 77 | B97: 5 | C97: 9 | D97: FALSE | E97: 30 | F97: 1907676 | G97: 1907400 | H97: 276
A98: 78 | B98: 5 | C98: 10 | D98: FALSE | E98: 29 | F98: 1932777 | G98: 1932900 | H98: -123
A99: 79 | B99: 5 | C99: 11 | D99: FALSE | E99: 30 | F99: 1957878 | G99: 1957550 | H99: 328
A100: 80 | B100: 5 | C100: 12 | D100: FALSE | E100: 29 | F100: 1982979 | G100: 1983050 | H100: -71
A101: 81 | B101: 5 | C101: 13 | D101: FALSE | E101: 30 | F101: 2008080 | G101: 2007700 | H101: 380
A102: 82 | B102: 5 | C102: 14 | D102: FALSE | E102: 29 | F102: 2033181 | G102: 2033200 | H102: -19
A103: 83 | B103: 5 | C103: 15 | D103: FALSE | E103: 30 | F103: 2058282 | G103: 2057850 | H103: 432
A104: 84 | B104: 5 | C104: 16 | D104: FALSE | E104: 29 | F104: 2083383 | G104: 2083350 | H104: 33
A105: 85 | B105: 5 | C105: 17 | D105: FALSE | E105: 30 | F105: 2108484 | G105: 2108000 | H105: 484
A106: 86 | B106: 6 | C106: 1 | D106: FALSE | E106: 30 | F106: 2133585 | G106: 2133500 | H106: 85
A107: 87 | B107: 6 | C107: 2 | D107: FALSE | E107: 29 | F107: 2158686 | G107: 2159000 | H107: -314
A108: 88 | B108: 6 | C108: 3 | D108: FALSE | E108: 30 | F108: 2183787 | G108: 2183650 | H108: 137
A109: 89 | B109: 6 | C109: 4 | D109: FALSE | E109: 29 | F109: 2208888 | G109: 2209150 | H109: -262
A110: 90 | B110: 6 | C110: 5 | D110: FALSE | E110: 30 | F110: 2233989 | G110: 2233800 | H110: 189
A111: 91 | B111: 6 | C111: 6 | D111: FALSE | E111: 29 | F111: 2259090 | G111: 2259300 | H111: -210
A112: 92 | B112: 6 | C112: 7 | D112: FALSE | E112: 30 | F112: 2284191 | G112: 2283950 | H112: 241
A113: 93 | B113: 6 | C113: 8 | D113: FALSE | E113: 29 | F113: 2309292 | G113: 2309450 | H113: -158
A114: 94 | B114: 6 | C114: 9 | D114: FALSE | E114: 30 | F114: 2334393 | G114: 2334100 | H114: 293
A115: 95 | B115: 6 | C115: 10 | D115: FALSE | E115: 29 | F115: 2359494 | G115: 2359600 | H115: -106
A116: 96 | B116: 6 | C116: 11 | D116: FALSE | E116: 30 | F116: 2384595 | G116: 2384250 | H116: 345
A117: 97 | B117: 6 | C117: 12 | D117: FALSE | E117: 29 | F117: 2409696 | G117: 2409750 | H117: -54
A118: 98 | B118: 6 | C118: 13 | D118: FALSE | E118: 30 | F118: 2434797 | G118: 2434400 | H118: 397
A119: 99 | B119: 6 | C119: 14 | D119: FALSE | E119: 29 | F119: 2459898 | G119: 2459900 | H119: -2
A120: =A119+1 -> 100 | B120: 6 | C120: 15 | D120: FALSE | E120: 30 | F120: 2484999 | G120: 2484550 | H120: 449
A121: 101 | B121: 6 | C121: 16 | D121: FALSE | E121: 29 | F121: 2510100 | G121: 2510050 | H121: 50
A122: 102 | B122: 6 | C122: 17 | D122: FALSE | E122: 30 | F122: 2535201 | G122: 2534700 | H122: 501
A123: 103 | B123: 7 | C123: 1 | D123: FALSE | E123: 30 | F123: 2560302 | G123: 2560200 | H123: 102
A124: 104 | B124: 7 | C124: 2 | D124: FALSE | E124: 29 | F124: 2585403 | G124: 2585700 | H124: -297
A125: 105 | B125: 7 | C125: 3 | D125: FALSE | E125: 30 | F125: 2610504 | G125: 2610350 | H125: 154
A126: 106 | B126: 7 | C126: 4 | D126: FALSE | E126: 29 | F126: 2635605 | G126: 2635850 | H126: -245
A127: 107 | B127: 7 | C127: 5 | D127: FALSE | E127: 30 | F127: 2660706 | G127: 2660500 | H127: 206
A128: 108 | B128: 7 | C128: 6 | D128: FALSE | E128: 29 | F128: 2685807 | G128: 2686000 | H128: -193
A129: 109 | B129: 7 | C129: 7 | D129: FALSE | E129: 30 | F129: 2710908 | G129: 2710650 | H129: 258
A130: 110 | B130: 7 | C130: 8 | D130: FALSE | E130: 29 | F130: 2736009 | G130: 2736150 | H130: -141
A131: 111 | B131: 7 | C131: 9 | D131: FALSE | E131: 30 | F131: 2761110 | G131: 2760800 | H131: 310
A132: 112 | B132: 7 | C132: 10 | D132: FALSE | E132: 29 | F132: 2786211 | G132: 2786300 | H132: -89
A133: 113 | B133: 7 | C133: 11 | D133: FALSE | E133: 30 | F133: 2811312 | G133: 2810950 | H133: 362
A134: 114 | B134: 7 | C134: 12 | D134: FALSE | E134: 29 | F134: 2836413 | G134: 2836450 | H134: -37
A135: 115 | B135: 7 | C135: 13 | D135: FALSE | E135: 30 | F135: 2861514 | G135: 2861100 | H135: 414
A136: 116 | B136: 7 | C136: 14 | D136: FALSE | E136: 29 | F136: 2886615 | G136: 2886600 | H136: 15
A137: 117 | B137: 7 | C137: 15 | D137: FALSE | E137: 30 | F137: 2911716 | G137: 2911250 | H137: 466
A138: 118 | B138: 7 | C138: 16 | D138: FALSE | E138: 29 | F138: 2936817 | G138: 2936750 | H138: 67
A139: 119 | B139: 7 | C139: 17 | D139: FALSE | E139: 30 | F139: 2961918 | G139: 2961400 | H139: 518
A140: 120 | B140: 8 | C140: 1 | D140: FALSE | E140: 30 | F140: 2987019 | G140: 2986900 | H140: 119
A141: 121 | B141: 8 | C141: 2 | D141: FALSE | E141: 29 | F141: 3012120 | G141: 3012400 | H141: -280
A142: 122 | B142: 8 | C142: 3 | D142: FALSE | E142: 30 | F142: 3037221 | G142: 3037050 | H142: 171
A143: 123 | B143: 8 | C143: 4 | D143: FALSE | E143: 29 | F143: 3062322 | G143: 3062550 | H143: -228
A144: 124 | B144: 8 | C144: 5 | D144: FALSE | E144: 30 | F144: 3087423 | G144: 3087200 | H144: 223
A145: 125 | B145: 8 | C145: 6 | D145: FALSE | E145: 29 | F145: 3112524 | G145: 3112700 | H145: -176
A146: 126 | B146: 8 | C146: 7 | D146: FALSE | E146: 30 | F146: 3137625 | G146: 3137350 | H146: 275
A147: 127 | B147: 8 | C147: 8 | D147: FALSE | E147: 29 | F147: 3162726 | G147: 3162850 | H147: -124
A148: 128 | B148: 8 | C148: 9 | D148: FALSE | E148: 30 | F148: 3187827 | G148: 3187500 | H148: 327
A149: 129 | B149: 8 | C149: 10 | D149: FALSE | E149: 29 | F149: 3212928 | G149: 3213000 | H149: =F149-G149 -> -72
A150: 130 | B150: =IF(C150=1,B149+1,B149) -> 8 | C150: 11 | D150: =AND(MOD(B150,50)=0,C150=8) -> FALSE | E150: =IF(MOD(C150,2)=1,30,29)+IF(D150,1,0) -> 30 | F150: 3238029 | G150: =G149+E149*PPD -> 3237650 | H150: 379
A151: 131 | B151: 8 | C151: =IF(C150=17,1,C150+1) -> 12 | D151: FALSE | E151: 29 | F151: =F150+PPM -> 3263130 | G151: 3263150 | H151: -20
A152: 132 | B152: 8 | C152: 13 | D152: FALSE | E152: 30 | F152: 3288231 | G152: 3287800 | H152: 431
A153: 133 | B153: 8 | C153: 14 | D153: FALSE | E153: 29 | F153: 3313332 | G153: 3313300 | H153: 32
A154: 134 | B154: 8 | C154: 15 | D154: FALSE | E154: 30 | F154: 3338433 | G154: 3337950 | H154: 483
A155: 135 | B155: 8 | C155: 16 | D155: FALSE | E155: 29 | F155: 3363534 | G155: 3363450 | H155: 84
A156: 136 | B156: 8 | C156: 17 | D156: FALSE | E156: 30 | F156: 3388635 | G156: 3388100 | H156: 535
A157: 137 | B157: 9 | C157: 1 | D157: FALSE | E157: 30 | F157: 3413736 | G157: 3413600 | H157: 136
A158: 138 | B158: 9 | C158: 2 | D158: FALSE | E158: 29 | F158: 3438837 | G158: 3439100 | H158: -263
A159: 139 | B159: 9 | C159: 3 | D159: FALSE | E159: 30 | F159: 3463938 | G159: 3463750 | H159: 188
A160: 140 | B160: 9 | C160: 4 | D160: FALSE | E160: 29 | F160: 3489039 | G160: 3489250 | H160: -211
A161: 141 | B161: 9 | C161: 5 | D161: FALSE | E161: 30 | F161: 3514140 | G161: 3513900 | H161: 240
A162: 142 | B162: 9 | C162: 6 | D162: FALSE | E162: 29 | F162: 3539241 | G162: 3539400 | H162: -159
A163: 143 | B163: 9 | C163: 7 | D163: FALSE | E163: 30 | F163: 3564342 | G163: 3564050 | H163: 292
A164: 144 | B164: 9 | C164: 8 | D164: FALSE | E164: 29 | F164: 3589443 | G164: 3589550 | H164: -107
A165: 145 | B165: 9 | C165: 9 | D165: FALSE | E165: 30 | F165: 3614544 | G165: 3614200 | H165: 344
A166: 146 | B166: 9 | C166: 10 | D166: FALSE | E166: 29 | F166: 3639645 | G166: 3639700 | H166: -55
A167: 147 | B167: 9 | C167: 11 | D167: FALSE | E167: 30 | F167: 3664746 | G167: 3664350 | H167: 396
A168: 148 | B168: 9 | C168: 12 | D168: FALSE | E168: 29 | F168: 3689847 | G168: 3689850 | H168: -3
A169: 149 | B169: 9 | C169: 13 | D169: FALSE | E169: 30 | F169: 3714948 | G169: 3714500 | H169: 448
A170: 150 | B170: 9 | C170: 14 | D170: FALSE | E170: 29 | F170: 3740049 | G170: 3740000 | H170: 49
A171: 151 | B171: 9 | C171: 15 | D171: FALSE | E171: 30 | F171: 3765150 | G171: 3764650 | H171: 500
A172: 152 | B172: 9 | C172: 16 | D172: FALSE | E172: 29 | F172: 3790251 | G172: 3790150 | H172: 101
A173: 153 | B173: 9 | C173: 17 | D173: FALSE | E173: 30 | F173: 3815352 | G173: 3814800 | H173: 552
A174: 154 | B174: 10 | C174: 1 | D174: FALSE | E174: 30 | F174: 3840453 | G174: 3840300 | H174: 153
A175: 155 | B175: 10 | C175: 2 | D175: FALSE | E175: 29 | F175: 3865554 | G175: 3865800 | H175: -246
A176: 156 | B176: 10 | C176: 3 | D176: FALSE | E176: 30 | F176: 3890655 | G176: 3890450 | H176: 205
A177: 157 | B177: 10 | C177: 4 | D177: FALSE | E177: 29 | F177: 3915756 | G177: 3915950 | H177: -194
A178: 158 | B178: 10 | C178: 5 | D178: FALSE | E178: 30 | F178: 3940857 | G178: 3940600 | H178: 257
A179: 159 | B179: 10 | C179: 6 | D179: FALSE | E179: 29 | F179: 3965958 | G179: 3966100 | H179: -142
A180: 160 | B180: 10 | C180: 7 | D180: FALSE | E180: 30 | F180: 3991059 | G180: 3990750 | H180: 309
A181: 161 | B181: 10 | C181: 8 | D181: FALSE | E181: 29 | F181: 4016160 | G181: 4016250 | H181: -90
A182: 162 | B182: 10 | C182: 9 | D182: FALSE | E182: 30 | F182: 4041261 | G182: 4040900 | H182: 361
A183: 163 | B183: 10 | C183: 10 | D183: FALSE | E183: 29 | F183: 4066362 | G183: 4066400 | H183: -38
A184: =A183+1 -> 164 | B184: 10 | C184: 11 | D184: FALSE | E184: 30 | F184: 4091463 | G184: 4091050 | H184: 413
A185: 165 | B185: 10 | C185: 12 | D185: FALSE | E185: 29 | F185: 4116564 | G185: 4116550 | H185: 14
A186: 166 | B186: 10 | C186: 13 | D186: FALSE | E186: 30 | F186: 4141665 | G186: 4141200 | H186: 465
A187: 167 | B187: 10 | C187: 14 | D187: FALSE | E187: 29 | F187: 4166766 | G187: 4166700 | H187: 66
A188: 168 | B188: 10 | C188: 15 | D188: FALSE | E188: 30 | F188: 4191867 | G188: 4191350 | H188: 517
A189: 169 | B189: 10 | C189: 16 | D189: FALSE | E189: 29 | F189: 4216968 | G189: 4216850 | H189: 118
A190: 170 | B190: 10 | C190: 17 | D190: FALSE | E190: 30 | F190: 4242069 | G190: 4241500 | H190: 569
A191: 171 | B191: 11 | C191: 1 | D191: FALSE | E191: 30 | F191: 4267170 | G191: 4267000 | H191: 170
A192: 172 | B192: 11 | C192: 2 | D192: FALSE | E192: 29 | F192: 4292271 | G192: 4292500 | H192: -229
A193: 173 | B193: 11 | C193: 3 | D193: FALSE | E193: 30 | F193: 4317372 | G193: 4317150 | H193: 222
A194: 174 | B194: 11 | C194: 4 | D194: FALSE | E194: 29 | F194: 4342473 | G194: 4342650 | H194: -177
A195: 175 | B195: 11 | C195: 5 | D195: FALSE | E195: 30 | F195: 4367574 | G195: 4367300 | H195: 274
A196: 176 | B196: 11 | C196: 6 | D196: FALSE | E196: 29 | F196: 4392675 | G196: 4392800 | H196: -125
A197: 177 | B197: 11 | C197: 7 | D197: FALSE | E197: 30 | F197: 4417776 | G197: 4417450 | H197: 326
A198: 178 | B198: 11 | C198: 8 | D198: FALSE | E198: 29 | F198: 4442877 | G198: 4442950 | H198: -73
A199: 179 | B199: 11 | C199: 9 | D199: FALSE | E199: 30 | F199: 4467978 | G199: 4467600 | H199: 378
A200: 180 | B200: 11 | C200: 10 | D200: FALSE | E200: 29 | F200: 4493079 | G200: 4493100 | H200: -21
A201: 181 | B201: 11 | C201: 11 | D201: FALSE | E201: 30 | F201: 4518180 | G201: 4517750 | H201: 430
A202: 182 | B202: 11 | C202: 12 | D202: FALSE | E202: 29 | F202: 4543281 | G202: 4543250 | H202: 31
... 1519 more rows

Sheet Years
A1: Month in Cycle | B1: Lunar Year | C1: New Year Moment | D1: Elapsed | E1: Difference
A2: =StartMonth -> 1 | B2: =IF(StartMonth>=9,2,1) -> 1 | C2: =(A2-1)*PPM -> 0 | D2: =LOOKUP(A2,Data!A$21:A$1721,Data!G$21:G$1721) -> 0 | E2: =C2-D2 -> 0
A3: =A2+17 -> 18 | B3: =B2+1 -> 2 | C3: =(A3-1)*PPM -> 426717 | D3: =LOOKUP(A3,Data!A$21:A$1721,Data!G$21:G$1721) -> 426700 | E3: =C3-D3 -> 17
A4: =A3+17 -> 35 | B4: =B3+1 -> 3 | C4: 853434 | D4: =LOOKUP(A4,Data!A$21:A$1721,Data!G$21:G$1721) -> 853400 | E4: 34
A5: 52 | B5: 4 | C5: 1280151 | D5: =LOOKUP(A5,Data!A$21:A$1721,Data!G$21:G$1721) -> 1280100 | E5: 51
A6: 69 | B6: 5 | C6: 1706868 | D6: =LOOKUP(A6,Data!A$21:A$1721,Data!G$21:G$1721) -> 1706800 | E6: 68
A7: 86 | B7: 6 | C7: 2133585 | D7: =LOOKUP(A7,Data!A$21:A$1721,Data!G$21:G$1721) -> 2133500 | E7: 85
A8: 103 | B8: 7 | C8: 2560302 | D8: =LOOKUP(A8,Data!A$21:A$1721,Data!G$21:G$1721) -> 2560200 | E8: 102
A9: 120 | B9: 8 | C9: 2987019 | D9: =LOOKUP(A9,Data!A$21:A$1721,Data!G$21:G$1721) -> 2986900 | E9: 119
A10: 137 | B10: 9 | C10: 3413736 | D10: =LOOKUP(A10,Data!A$21:A$1721,Data!G$21:G$1721) -> 3413600 | E10: 136
A11: 154 | B11: 10 | C11: 3840453 | D11: =LOOKUP(A11,Data!A$21:A$1721,Data!G$21:G$1721) -> 3840300 | E11: 153
A12: 171 | B12: 11 | C12: 4267170 | D12: =LOOKUP(A12,Data!A$21:A$1721,Data!G$21:G$1721) -> 4267000 | E12: 170
A13: 188 | B13: 12 | C13: 4693887 | D13: =LOOKUP(A13,Data!A$21:A$1721,Data!G$21:G$1721) -> 4693700 | E13: 187
A14: 205 | B14: 13 | C14: 5120604 | D14: =LOOKUP(A14,Data!A$21:A$1721,Data!G$21:G$1721) -> 5120400 | E14: 204
A15: 222 | B15: 14 | C15: 5547321 | D15: =LOOKUP(A15,Data!A$21:A$1721,Data!G$21:G$1721) -> 5547100 | E15: 221
A16: 239 | B16: 15 | C16: 5974038 | D16: =LOOKUP(A16,Data!A$21:A$1721,Data!G$21:G$1721) -> 5973800 | E16: 238
A17: 256 | B17: 16 | C17: 6400755 | D17: =LOOKUP(A17,Data!A$21:A$1721,Data!G$21:G$1721) -> 6400500 | E17: 255
A18: 273 | B18: 17 | C18: 6827472 | D18: =LOOKUP(A18,Data!A$21:A$1721,Data!G$21:G$1721) -> 6827200 | E18: 272
A19: 290 | B19: 18 | C19: 7254189 | D19: =LOOKUP(A19,Data!A$21:A$1721,Data!G$21:G$1721) -> 7253900 | E19: 289
A20: 307 | B20: 19 | C20: 7680906 | D20: =LOOKUP(A20,Data!A$21:A$1721,Data!G$21:G$1721) -> 7680600 | E20: 306
A21: 324 | B21: 20 | C21: 8107623 | D21: =LOOKUP(A21,Data!A$21:A$1721,Data!G$21:G$1721) -> 8107300 | E21: 323
A22: 341 | B22: 21 | C22: 8534340 | D22: =LOOKUP(A22,Data!A$21:A$1721,Data!G$21:G$1721) -> 8534000 | E22: 340
A23: 358 | B23: 22 | C23: 8961057 | D23: =LOOKUP(A23,Data!A$21:A$1721,Data!G$21:G$1721) -> 8960700 | E23: 357
A24: 375 | B24: 23 | C24: 9387774 | D24: =LOOKUP(A24,Data!A$21:A$1721,Data!G$21:G$1721) -> 9387400 | E24: 374
A25: 392 | B25: 24 | C25: 9814491 | D25: =LOOKUP(A25,Data!A$21:A$1721,Data!G$21:G$1721) -> 9814100 | E25: 391
A26: 409 | B26: 25 | C26: 10241208 | D26: =LOOKUP(A26,Data!A$21:A$1721,Data!G$21:G$1721) -> 10240800 | E26: 408
A27: 426 | B27: 26 | C27: 10667925 | D27: =LOOKUP(A27,Data!A$21:A$1721,Data!G$21:G$1721) -> 10667500 | E27: 425
A28: 443 | B28: 27 | C28: 11094642 | D28: =LOOKUP(A28,Data!A$21:A$1721,Data!G$21:G$1721) -> 11094200 | E28: 442
A29: 460 | B29: 28 | C29: 11521359 | D29: =LOOKUP(A29,Data!A$21:A$1721,Data!G$21:G$1721) -> 11520900 | E29: 459
A30: 477 | B30: 29 | C30: 11948076 | D30: =LOOKUP(A30,Data!A$21:A$1721,Data!G$21:G$1721) -> 11947600 | E30: 476
A31: 494 | B31: 30 | C31: 12374793 | D31: =LOOKUP(A31,Data!A$21:A$1721,Data!G$21:G$1721) -> 12374300 | E31: 493
A32: 511 | B32: 31 | C32: 12801510 | D32: =LOOKUP(A32,Data!A$21:A$1721,Data!G$21:G$1721) -> 12801000 | E32: 510
A33: 528 | B33: 32 | C33: 13228227 | D33: =LOOKUP(A33,Data!A$21:A$1721,Data!G$21:G$1721) -> 13227700 | E33: 527
A34: 545 | B34: 33 | C34: 13654944 | D34: =LOOKUP(A34,Data!A$21:A$1721,Data!G$21:G$1721) -> 13654400 | E34: 544
A35: 562 | B35: 34 | C35: 14081661 | D35: =LOOKUP(A35,Data!A$21:A$1721,Data!G$21:G$1721) -> 14081100 | E35: 561
A36: 579 | B36: 35 | C36: 14508378 | D36: =LOOKUP(A36,Data!A$21:A$1721,Data!G$21:G$1721) -> 14507800 | E36: 578
A37: 596 | B37: 36 | C37: 14935095 | D37: =LOOKUP(A37,Data!A$21:A$1721,Data!G$21:G$1721) -> 14934500 | E37: 595
A38: 613 | B38: 37 | C38: 15361812 | D38: =LOOKUP(A38,Data!A$21:A$1721,Data!G$21:G$1721) -> 15361200 | E38: 612
A39: 630 | B39: 38 | C39: 15788529 | D39: =LOOKUP(A39,Data!A$21:A$1721,Data!G$21:G$1721) -> 15787900 | E39: 629
A40: 647 | B40: 39 | C40: 16215246 | D40: =LOOKUP(A40,Data!A$21:A$1721,Data!G$21:G$1721) -> 16214600 | E40: 646
A41: 664 | B41: 40 | C41: 16641963 | D41: =LOOKUP(A41,Data!A$21:A$1721,Data!G$21:G$1721) -> 16641300 | E41: 663
A42: 681 | B42: 41 | C42: 17068680 | D42: =LOOKUP(A42,Data!A$21:A$1721,Data!G$21:G$1721) -> 17068000 | E42: 680
A43: 698 | B43: 42 | C43: 17495397 | D43: =LOOKUP(A43,Data!A$21:A$1721,Data!G$21:G$1721) -> 17494700 | E43: 697
A44: 715 | B44: 43 | C44: 17922114 | D44: =LOOKUP(A44,Data!A$21:A$1721,Data!G$21:G$1721) -> 17921400 | E44: 714
A45: 732 | B45: 44 | C45: 18348831 | D45: =LOOKUP(A45,Data!A$21:A$1721,Data!G$21:G$1721) -> 18348100 | E45: 731
A46: 749 | B46: 45 | C46: 18775548 | D46: =LOOKUP(A46,Data!A$21:A$1721,Data!G$21:G$1721) -> 18774800 | E46: 748
A47: 766 | B47: 46 | C47: 19202265 | D47: =LOOKUP(A47,Data!A$21:A$1721,Data!G$21:G$1721) -> 19201500 | E47: 765
A48: 783 | B48: 47 | C48: 19628982 | D48: =LOOKUP(A48,Data!A$21:A$1721,Data!G$21:G$1721) -> 19628200 | E48: 782
A49: 800 | B49: 48 | C49: 20055699 | D49: =LOOKUP(A49,Data!A$21:A$1721,Data!G$21:G$1721) -> 20054900 | E49: 799
A50: 817 | B50: 49 | C50: 20482416 | D50: =LOOKUP(A50,Data!A$21:A$1721,Data!G$21:G$1721) -> 20481600 | E50: 816
A51: 834 | B51: 50 | C51: 20909133 | D51: =LOOKUP(A51,Data!A$21:A$1721,Data!G$21:G$1721) -> 20908300 | E51: 833
A52: 851 | B52: 51 | C52: 21335850 | D52: =LOOKUP(A52,Data!A$21:A$1721,Data!G$21:G$1721) -> 21335850 | E52: 0
A53: 868 | B53: 52 | C53: 21762567 | D53: =LOOKUP(A53,Data!A$21:A$1721,Data!G$21:G$1721) -> 21762550 | E53: 17
A54: 885 | B54: 53 | C54: 22189284 | D54: =LOOKUP(A54,Data!A$21:A$1721,Data!G$21:G$1721) -> 22189250 | E54: 34
A55: 902 | B55: 54 | C55: 22616001 | D55: =LOOKUP(A55,Data!A$21:A$1721,Data!G$21:G$1721) -> 22615950 | E55: 51
A56: 919 | B56: 55 | C56: 23042718 | D56: =LOOKUP(A56,Data!A$21:A$1721,Data!G$21:G$1721) -> 23042650 | E56: 68
A57: 936 | B57: 56 | C57: 23469435 | D57: =LOOKUP(A57,Data!A$21:A$1721,Data!G$21:G$1721) -> 23469350 | E57: 85
A58: 953 | B58: 57 | C58: 23896152 | D58: =LOOKUP(A58,Data!A$21:A$1721,Data!G$21:G$1721) -> 23896050 | E58: 102
A59: 970 | B59: 58 | C59: 24322869 | D59: =LOOKUP(A59,Data!A$21:A$1721,Data!G$21:G$1721) -> 24322750 | E59: 119
A60: 987 | B60: 59 | C60: 24749586 | D60: =LOOKUP(A60,Data!A$21:A$1721,Data!G$21:G$1721) -> 24749450 | E60: 136
A61: 1004 | B61: 60 | C61: 25176303 | D61: =LOOKUP(A61,Data!A$21:A$1721,Data!G$21:G$1721) -> 25176150 | E61: 153
A62: 1021 | B62: 61 | C62: 25603020 | D62: =LOOKUP(A62,Data!A$21:A$1721,Data!G$21:G$1721) -> 25602850 | E62: 170
A63: 1038 | B63: 62 | C63: 26029737 | D63: =LOOKUP(A63,Data!A$21:A$1721,Data!G$21:G$1721) -> 26029550 | E63: 187
A64: 1055 | B64: 63 | C64: 26456454 | D64: =LOOKUP(A64,Data!A$21:A$1721,Data!G$21:G$1721) -> 26456250 | E64: 204
A65: 1072 | B65: 64 | C65: 26883171 | D65: =LOOKUP(A65,Data!A$21:A$1721,Data!G$21:G$1721) -> 26882950 | E65: 221
A66: 1089 | B66: 65 | C66: 27309888 | D66: =LOOKUP(A66,Data!A$21:A$1721,Data!G$21:G$1721) -> 27309650 | E66: =C66-D66 -> 238
A67: 1106 | B67: 66 | C67: =(A67-1)*PPM -> 27736605 | D67: =LOOKUP(A67,Data!A$21:A$1721,Data!G$21:G$1721) -> 27736350 | E67: 255
A68: =A67+17 -> 1123 | B68: =B67+1 -> 67 | C68: 28163322 | D68: =LOOKUP(A68,Data!A$21:A$1721,Data!G$21:G$1721) -> 28163050 | E68: 272
A69: 1140 | B69: 68 | C69: 28590039 | D69: =LOOKUP(A69,Data!A$21:A$1721,Data!G$21:G$1721) -> 28589750 | E69: 289
A70: 1157 | B70: 69 | C70: 29016756 | D70: =LOOKUP(A70,Data!A$21:A$1721,Data!G$21:G$1721) -> 29016450 | E70: 306
A71: 1174 | B71: 70 | C71: 29443473 | D71: =LOOKUP(A71,Data!A$21:A$1721,Data!G$21:G$1721) -> 29443150 | E71: 323
A72: 1191 | B72: 71 | C72: 29870190 | D72: =LOOKUP(A72,Data!A$21:A$1721,Data!G$21:G$1721) -> 29869850 | E72: 340
A73: 1208 | B73: 72 | C73: 30296907 | D73: =LOOKUP(A73,Data!A$21:A$1721,Data!G$21:G$1721) -> 30296550 | E73: 357
A74: 1225 | B74: 73 | C74: 30723624 | D74: =LOOKUP(A74,Data!A$21:A$1721,Data!G$21:G$1721) -> 30723250 | E74: 374
A75: 1242 | B75: 74 | C75: 31150341 | D75: =LOOKUP(A75,Data!A$21:A$1721,Data!G$21:G$1721) -> 31149950 | E75: 391
A76: 1259 | B76: 75 | C76: 31577058 | D76: =LOOKUP(A76,Data!A$21:A$1721,Data!G$21:G$1721) -> 31576650 | E76: 408
A77: 1276 | B77: 76 | C77: 32003775 | D77: =LOOKUP(A77,Data!A$21:A$1721,Data!G$21:G$1721) -> 32003350 | E77: 425
A78: 1293 | B78: 77 | C78: 32430492 | D78: =LOOKUP(A78,Data!A$21:A$1721,Data!G$21:G$1721) -> 32430050 | E78: 442
A79: 1310 | B79: 78 | C79: 32857209 | D79: =LOOKUP(A79,Data!A$21:A$1721,Data!G$21:G$1721) -> 32856750 | E79: 459
A80: 1327 | B80: 79 | C80: 33283926 | D80: =LOOKUP(A80,Data!A$21:A$1721,Data!G$21:G$1721) -> 33283450 | E80: 476
A81: 1344 | B81: 80 | C81: 33710643 | D81: =LOOKUP(A81,Data!A$21:A$1721,Data!G$21:G$1721) -> 33710150 | E81: 493
A82: 1361 | B82: 81 | C82: 34137360 | D82: =LOOKUP(A82,Data!A$21:A$1721,Data!G$21:G$1721) -> 34136850 | E82: 510
A83: 1378 | B83: 82 | C83: 34564077 | D83: =LOOKUP(A83,Data!A$21:A$1721,Data!G$21:G$1721) -> 34563550 | E83: 527
A84: 1395 | B84: 83 | C84: 34990794 | D84: =LOOKUP(A84,Data!A$21:A$1721,Data!G$21:G$1721) -> 34990250 | E84: 544
A85: 1412 | B85: 84 | C85: 35417511 | D85: =LOOKUP(A85,Data!A$21:A$1721,Data!G$21:G$1721) -> 35416950 | E85: 561
A86: 1429 | B86: 85 | C86: 35844228 | D86: =LOOKUP(A86,Data!A$21:A$1721,Data!G$21:G$1721) -> 35843650 | E86: 578
A87: 1446 | B87: 86 | C87: 36270945 | D87: =LOOKUP(A87,Data!A$21:A$1721,Data!G$21:G$1721) -> 36270350 | E87: 595
A88: 1463 | B88: 87 | C88: 36697662 | D88: =LOOKUP(A88,Data!A$21:A$1721,Data!G$21:G$1721) -> 36697050 | E88: 612
A89: 1480 | B89: 88 | C89: 37124379 | D89: =LOOKUP(A89,Data!A$21:A$1721,Data!G$21:G$1721) -> 37123750 | E89: 629
A90: 1497 | B90: 89 | C90: 37551096 | D90: =LOOKUP(A90,Data!A$21:A$1721,Data!G$21:G$1721) -> 37550450 | E90: 646
A91: 1514 | B91: 90 | C91: 37977813 | D91: =LOOKUP(A91,Data!A$21:A$1721,Data!G$21:G$1721) -> 37977150 | E91: 663
A92: 1531 | B92: 91 | C92: 38404530 | D92: =LOOKUP(A92,Data!A$21:A$1721,Data!G$21:G$1721) -> 38403850 | E92: 680
A93: 1548 | B93: 92 | C93: 38831247 | D93: =LOOKUP(A93,Data!A$21:A$1721,Data!G$21:G$1721) -> 38830550 | E93: 697
A94: 1565 | B94: 93 | C94: 39257964 | D94: =LOOKUP(A94,Data!A$21:A$1721,Data!G$21:G$1721) -> 39257250 | E94: 714
A95: 1582 | B95: 94 | C95: 39684681 | D95: =LOOKUP(A95,Data!A$21:A$1721,Data!G$21:G$1721) -> 39683950 | E95: 731
A96: 1599 | B96: 95 | C96: 40111398 | D96: =LOOKUP(A96,Data!A$21:A$1721,Data!G$21:G$1721) -> 40110650 | E96: 748
A97: 1616 | B97: 96 | C97: 40538115 | D97: =LOOKUP(A97,Data!A$21:A$1721,Data!G$21:G$1721) -> 40537350 | E97: 765
A98: 1633 | B98: 97 | C98: 40964832 | D98: =LOOKUP(A98,Data!A$21:A$1721,Data!G$21:G$1721) -> 40964050 | E98: 782
A99: 1650 | B99: 98 | C99: =(A99-1)*PPM -> 41391549 | D99: =LOOKUP(A99,Data!A$21:A$1721,Data!G$21:G$1721) -> 41390750 | E99: =C99-D99 -> 799
A100: 1667 | B100: 99 | C100: 41818266 | D100: =LOOKUP(A100,Data!A$21:A$1721,Data!G$21:G$1721) -> 41817450 | E100: 816
A101: 1684 | B101: 100 | C101: 42244983 | D101: =LOOKUP(A101,Data!A$21:A$1721,Data!G$21:G$1721) -> 42244150 | E101: 833

Sheet Rules
A1: odd-numbered months have 30 days, even numbered months have 29 days
A2: lunar year has 17 months (9 full, 8 deficient)
A3: length of common year = | B3: =(9*30)+(8*29) -> 502 | C3: days
A4: once every 50 lunar years (850 months) a leap day is added to the eighth month of the leap lunar year
A5: when the year number is divisible by 50

Sheet Zoom
A1: 0 | B1: = Current Zoom Level
A2: Level | B2: Months | C2: MajorTick | D2: MinorTick | E2: Shift | F2: Connect | G2: Years | H2: YearsMajor | I2: YearsMinor
A3: =ROW()-3 -> 0 | B3: =2*MPC -> 1700 | C3: 170 | D3: 17 | F3: FALSE | G3: =B3/17 -> 100 | H3: 5 | I3: 1
A4: 1 | B4: =B3/2 -> 850 | C4: 34 | D4: 17 | E4: =B5 -> 425 | F4: FALSE | G4: =B4/17 -> 50 | H4: 2 | I4: 1
A5: 2 | B5: =B4/2 -> 425 | C5: 17 | D5: 17 | E5: 340 | F5: FALSE | G5: 25 | H5: 1 | I5: 1
A6: 3 | B6: 340 | C6: 17 | D6: 17 | E6: 170 | F6: FALSE | G6: 20 | H6: 1 | I6: 1
A7: 4 | B7: 170 | C7: 17 | D7: 1 | E7: 68 | F7: TRUE | G7: 10 | H7: 1 | I7: =1/17 -> 0.05882352941
A8: 5 | B8: 68 | C8: 17 | D8: 1 | E8: 34 | F8: TRUE | G8: 4 | H8: 1 | I8: =1/17 -> 0.05882352941
A9: 6 | B9: 34 | C9: 1 | D9: 1 | E9: 17 | F9: TRUE | G9: 2 | H9: 1 | I9: =1/17 -> 0.05882352941
A10: 7 | B10: 17 | C10: 1 | D10: 1 | E10: 17 | F10: TRUE | G10: 1 | H10: 1 | I10: =1/17 -> 0.05882352941

Sheet Labels
A1: Lunar Year | B1: Hours | C1: ="Span "&B2-B28&"h" -> Span 78h
A2: 101 | B2: 39
A3: =A2 -> 101 | B3: =B2-3 -> 36
A4: =A3 -> 101 | B4: =B3-3 -> 33
A5: =A4 -> 101 | B5: =B4-3 -> 30
A6: =A5 -> 101 | B6: =B5-3 -> 27
A7: 101 | B7: 24
A8: 101 | B8: 21
A9: 101 | B9: 18
A10: 101 | B10: 15
A11: 101 | B11: 12
A12: 101 | B12: 9
A13: 101 | B13: 6
A14: 101 | B14: 3
A15: 101 | B15: 0
A16: 101 | B16: -3
A17: 101 | B17: -6
A18: 101 | B18: -9
A19: 101 | B19: -12
A20: 101 | B20: -15
A21: 101 | B21: -18
A22: 101 | B22: -21
A23: 101 | B23: -24
A24: 101 | B24: -27
A25: 101 | B25: -30
A26: 101 | B26: -33
A27: 101 | B27: -36
A28: 101 | B28: -39
